Cogmind - Beta 15 @@@ ROGUE MODE // 2025.07.28 @ 00:58:04 Player: bugsniper Result: Self-destructed Performance ------------- Evolutions (0) 0 Regions Visited (3) 600 Robots Destroyed (43) 215 Value Destroyed (744) 744 Prototype IDs (6) 120 Alien Tech Used (0) 0 Bonus (-42) -42 TOTAL SCORE: 1637 Bonus ------- Friendly Fire -42 Cogmind --------- Core Integrity 24/250 Matter 233/300 Energy 125/125 System Corruption 1% Temperature Warm (143) Movement Treading (160) Location -9/Recycling Parts ------- > --- POWER (1) -------- Light Ion Engine > --- PROPULSION (2) --- Light Treads > --- UTILITY (2) ------ Scrap Engine > --- WEAPON (2) ------- (None) > --- INVENTORY (5) ---- Small Storage Unit Improved Light Cannon Grenade Launcher Peak State ------------ > --- POWER ------------ Light Ion Engine > --- PROPULSION ------- Light Treads Light Treads > --- UTILITY ---------- Scrap Engine > --- WEAPON ----------- Improved Assault Rifle > --- INVENTORY -------- Small Storage Unit Improved Light Cannon Grenade Launcher [Rating: 24] Favorites ----------- Power Light Ion Engine Engine Light Ion Engine Propulsion Light Treads Treads Light Treads Leg Aluminum Leg Utility Targeting Computer Device Power Bank Storage Large Storage Unit Processor Targeting Computer Weapon Assault Rifle Energy Gun Particle Gun Energy Cannon Beam Cannon Ballistic Gun Assault Rifle Ballistic Cannon Light Cannon Launcher Grenade Launcher Build | -11 -10 -10 -9 ------- Run | Yrd Mat Sub Rec Slots Evolved . | . . . . Power . | . . . . Propulsion . | . . . . Utility . | . . . . Weapon . | . . . . Parts Attached 21 | . 15 2 4 Power 2 | . 1 . 1 Engine 2 | . 1 . 1 Core . | . . . . Reactor . | . . . . Propulsion 4 | . 2 . 2 Treads 4 | . 2 . 2 Leg . | . . . . Wheel . | . . . . Hover . | . . . . Flight . | . . . . Utility 4 | . 2 1 1 Device 2 | . . 1 1 Storage 1 | . 1 . . Processor 1 | . 1 . . Hackware . | . . . . Protection . | . . . . Artifact . | . . . . Weapon 11 | . 10 1 . Energy Gun 2 | . 2 . . Energy Cannon 1 | . 1 . . Ballistic Gun 4 | . 4 . . Ballistic Cannon 1 | . 1 . . Launcher 3 | . 2 1 . Special Weapon . | . . . . Impact Weapon . | . . . . Slashing Weapon . | . . . . Piercing Weapon . | . . . . Special Melee Weapon . | . . . . Unidentified Prototypes 2 | . . 1 1 Parts Lost 9 | . . . 9 Power . | . . . . Propulsion 3 | . . . 3 Utility . | . . . . Weapon 6 | . . . 6 Highest Loss Streak 8 | . . . 8 To Critical Strikes . | . . . . Average Backups 9 | . 8 11 9 Power . | . 1 1 . Propulsion 2 | . 2 2 1 Utility . | . . 1 1 Weapon 5 | . 4 7 5 Tool/Special . | . . . . Unused Backups 10 | . 7 . 3 Power 1 | . 1 . . Propulsion 4 | . 4 . . Utility 1 | . . . 1 Weapon 4 | . 2 . 2 Tool/Special . | . . . . Average Slot Usage (%) 91 | . 97 97 67 Engine 13 | . 13 13 10 Treads 24 | . 26 27 17 Device 2 | . . . 9 Storage 13 | . 14 13 10 Processor 9 | . 11 12 . Energy Gun 2 | . 4 . . Ballistic Gun 14 | . 16 3 19 Ballistic Cannon 3 | . 5 . . Launcher 5 | . 1 23 . Peak Build Rating 24 | . 12 20 24 Average Rating 10 | . 7 9 19 On Entrance 10 | 6 6 8 20 Naked Turns . | . . . . Heaviest Build 32 | 13 29 32 32 Greatest Support 40 | 20 40 40 40 Greatest Overweight (x) 1 | . . . 1 Average Overweight (x) . | . . . . Largest Inventory Capacity 15 | . 15 15 15 Average Capacity 11 | . 9 15 14 Most Carried 14 | . 14 12 11 Average Carried 9 | . 8 11 9 Final Capacity 15 | 8 15 15 5 Final Carried 12 | 6 12 10 3 Class Distribution -------------------- 88% | Mutant 11% | Commander-Mutant Dominant Class ---------------- Mutant | -10/Materials Mutant | -10/Subcaves Commander-Mutant | -9/Recycling Resources | -11 -10 -10 -9 ----------- Run | Yrd Mat Sub Rec Matter Collected 1124 | 200 485 149 290 Remotely . | . . . . Salvage Created 1385 | . 650 207 528 Parts 84 | . 39 22 23 Haulers Intercepted 2 | . 2 . . Recyclers Shooed 10 | . 7 . 3 Parts Field Recycled . | . . . . Retrieved Matter . | . . . . Parts Self-Destructed 8 | . . 8 . Prevented . | . . . . Kills | -11 -10 -10 -9 ------- Run | Yrd Mat Sub Rec Combat Hostiles Destroyed 24 | . 12 10 2 Guns 14 | . 12 . 2 AOE 10 | . . 10 . Classes Destroyed 12 | . 7 3 2 Worker 3 | . 3 . . Tunneler 1 | . 1 . . Hauler 2 | . 2 . . Recycler 10 | . 4 . 6 Operator 1 | . 1 . . Turret 2 | . . 2 . Swarmer 13 | . 9 4 . Grunt 3 | . 3 . . Programmer 1 | . . . 1 Subdweller 6 | . . 6 . Scientist 1 | . . 1 . Scrapper 1 | . . . 1 Best Kill Streak 6 | . 5 6 6 Combat Bots Only 4 | . 4 4 1 Max Kills in Single Turn 3 | . 1 3 1 Gunslinging . | . . . . Exploded 3 | . . 3 . Melee . | . . . . Uniques/NPCs Destroyed . | . . . . Combat | -11 -10 -10 -9 -------- Run | Yrd Mat Sub Rec Hostile Shots Fired 128 | . 45 40 43 Missed 36 | . 12 18 6 Hits 92 | . 33 22 37 Projectile 92 | . 33 22 37 Critical Strikes 2 | . . . 2 Damage Taken 1438 | . 314 415 709 Core 226 | . 72 82 72 Absorbed by Shields 40 | . . . 40 Core Remaining (%) 100 | 100 . . . Volleys Fired 106 | . 61 18 27 Largest 2 | . 2 2 2 Hottest 95 | . 95 60 46 Shots Fired 200 | . 121 31 48 Gun 159 | . 105 6 48 Cannon 16 | . 16 . . Launcher 25 | . . 25 . Special . | . . . . Kinetic 157 | . 103 6 48 Thermal 18 | . 18 . . Explosive 25 | . . 25 . Electromagnetic . | . . . . Robot Hit Streak 52 | . 8 9 52 Robot Miss Streak 3 | . 3 . . Penetration Max . | . . . . Secondary Targets 2 | . 2 . . Max Gunslinging Chain 1 | . 1 . . Shots Hit Robots 127 | . 77 7 43 Core Hits 66 | . 28 24 14 Critical Kills . | . . . . Critical Parts Destroyed 1 | . . . 1 Critical Strikes 3 | . 2 . 1 Burn 2 | . 2 . . Destroy 1 | . . . 1 Melee Attacks . | . . . . Impact . | . . . . Slashing . | . . . . Piercing . | . . . . Sneak Attacks . | . . . . Combat Hostiles . | . . . . Follow-up Attacks . | . . . . Damage Inflicted 2796 | . 1075 1055 666 Guns 1614 | . 861 87 666 Cannons 214 | . 214 . . Explosions 968 | . . 968 . Melee . | . . . . Ramming . | . . . . Kinetic 1631 | . 878 87 666 Thermal 197 | . 197 . . Explosive 968 | . . 968 . Electromagnetic . | . . . . Impact . | . . . . Slashing . | . . . . Piercing . | . . . . Highest Corruption 1 | . . . 1 Average Corruption 1 | . . . 1 Corruption Purged . | . . . . Corruption Blocked . | . . . . Effects 3 | . . . 3 Matter Fused 1 | . . . 1 Data Loss (minor) 1 | . . . 1 Weapon Failures 1 | . . . 1 Overload Shots . | . . . . Overflow Damage 30 | . 9 21 . Projectiles 9 | . 9 . . Explosions 21 | . . 21 . Melee . | . . . . Knockbacks 3 | . 3 . . Impact . | . . . . Kinetic 3 | . 3 . . Secondary . | . . . . Self-Inflicted Damage 148 | . . 148 . Shots 5 | . . 5 . Rammed . | . . . . Targets Rammed . | . . . . Kicked . | . . . . Crushed . | . . . . Highest Temperature 159 | . 72 4 159 Average Temperature 44 | . 26 3 88 Received Heat Transfer 599 | . 69 120 410 Siege Activations . | . . . . Martial Activations . | . . . . Shielding Activations . | . . . . Robots Disrupted . | . . . . Combat Hostiles . | . . . . Robots Corrupted . | . . . . Combat Hostiles . | . . . . Parts Fried . | . . . . Impact Corruptions . | . . . . Robots Melted 1 | . 1 . . Combat Hostiles . | . . . . Parts Melted 1 | . 1 . . Heat Transferred 617 | . 617 . . Parts Sabotaged . | . . . . Parts Stolen . | . . . . Parts Stripped . | . . . . Power Chain Reactions . | . . . . Alert | -11 -10 -10 -9 ------- Run | Yrd Mat Sub Rec Maximum Alert Level . | . . . . Low Security (%) 100 | . 100 . 100 Level 1 . | . . . . Level 2 . | . . . . Level 3 . | . . . . Level 4 . | . . . . Level 5 . | . . . . High Security . | . . . . Max Security . | . . . . Peak Influence 146 | . 146 . 55 Initial 55 | . . . 55 Average 37 | . 46 . 8 Influence Increases 643 | . 420 165 58 Destroy 0b10 Robot/C 380 | . 240 120 20 Destroy 0b10 Robot/NC 85 | . 55 . 30 Destroy Leader 54 | . 54 . . Successful Hack 45 | . 37 . 8 Destroy Structure 4 | . 4 . . Lose Combat Pursuer 75 | . 30 45 . Influence Decreases 643 | . 420 48 175 Entered New Map 62 | . . . 62 Time Decay 576 | . 420 48 108 Lost Part 5 | . . . 5 Squads Dispatched 1 | . 1 . . Investigation . | . . . . Extermination . | . . . . Reinforcement 1 | . 1 . . Assault . | . . . . Garrison . | . . . . Intercept . | . . . . Searches Triggered . | . . . . Construction Impeded . | . . . . Haulers Reinforced . | . . . . Active Scanning Responses . | . . . . Cargo Convoy Interrupts . | . . . . Stealth | -11 -10 -10 -9 --------- Run | Yrd Mat Sub Rec Distress Signals 1 | . 1 . . Communications Jammed . | . . . . Distress Signals . | . . . . Times Spotted 46 | . 32 10 4 Peak Tracking Total 6 | . 6 3 5 Tactical Retreats 4 | . 2 1 1 Traps | -11 -10 -10 -9 ------- Run | Yrd Mat Sub Rec Traps Triggered . | . . . . Indirectly . | . . . . Trap Hack Attempts . | . . . . Triggered . | . . . . Disarmed . | . . . . Reprogrammed . | . . . . Reused . | . . . . Traps Extracted . | . . . . Installed . | . . . . Triggered . | . . . . Machines | -11 -10 -10 -9 ---------- Run | Yrd Mat Sub Rec Machines Disabled 4 | . . 4 . Max in Single Turn 2 | . . 2 . Machines Repaired . | . . . . Machines Dismantled . | . . . . Machines Sabotaged . | . . . . Overloaded Fab Kills . | . . . . Hacking | -11 -10 -10 -9 --------- Run | Yrd Mat Sub Rec Machines Accessed 13 | . 6 . 7 Terminals 9 | . 6 . 3 Fabricators . | . . . . Repair Stations . | . . . . Recycling Units 2 | . . . 2 Scanalyzers . | . . . . Garrison Access . | . . . . Total Hacks 55 | . 16 . 39 Successful 43 | . 8 . 35 Failed 12 | . 8 . 4 Catastrophic 1 | . 1 . . Database Lockouts . | . . . . Manual 7 | . 4 . 3 Terminals 25 | . 16 . 9 Fabricators . | . . . . Repair Stations . | . . . . Recycling Units 4 | . . . 4 Scanalyzers . | . . . . Garrison Access . | . . . . Terminal Hacks 37 | . 7 . 30 Record 25 | . . . 25 Robot Analysis 1 | . 1 . . Prototype ID Bank 2 | . 2 . . Branch Access Points 1 | . . . 1 Emergency Access Points 1 | . 1 . . Locate Traps 2 | . 2 . . Dispatch Records 1 | . . . 1 Maintenance Status 1 | . . . 1 Zone Layout 1 | . 1 . . Release Object 2 | . . . 2 Fabricator Hacks . | . . . . Repair Station Hacks . | . . . . Recycling Unit Hacks 2 | . . . 2 Report Inventory 1 | . . . 1 Retrieve Components 1 | . . . 1 Scanalyzer . | . . . . Garrison Access Hacks . | . . . . Unauthorized Hacks 4 | . 1 . 3 Terminals 2 | . 1 . 1 Botnet 2 | . 1 . 1 Fabricators . | . . . . Repair Stations . | . . . . Recycling Units 2 | . . . 2 Reject 2 | . . . 2 Scanalyzers . | . . . . Garrison Access . | . . . . Data Cores Recovered 1 | . 1 . . Used . | . . . . Hacking Detections 11 | . 6 . 5 Full Trace Events 1 | . 1 . . Feedback Events . | . . . . Feedback Blocked . | . . . . Robot Schematics Acquired . | . . . . Robots Built . | . . . . Authchips . | . . . . Time . | . . . . Total Robot Build Rating . | . . . . Part Schematics Acquired . | . . . . Parts Built . | . . . . Authchips . | . . . . Time . | . . . . Total Part Build Rating . | . . . . Parts Repaired . | . . . . Time . | . . . . Parts Recycled . | . . . . Recycled Matter . | . . . . Retrieved Matter . | . . . . Retrieved Components 9 | . . . 9 Parts Scanalyzed . | . . . . Part Schematics Acquired . | . . . . Parts Damaged . | . . . . Bothacking | -11 -10 -10 -9 ------------ Run | Yrd Mat Sub Rec Used RIF Installer . | . . . . Robots Hacked . | . . . . Non-combat . | . . . . Combat . | . . . . Robot Hacks Applied . | . . . . Relay Couplers Released . | . . . . Fabnet Peak Effective % . | . . . . Robots Rewired 6 | . . . 6 Allies Hacked . | . . . . Hacks Repelled . | . . . . Allies | -11 -10 -10 -9 -------- Run | Yrd Mat Sub Rec Total Allies 6 | . . . 6 Largest Group 6 | . . . 6 Highest-Rated Group 121 | . . . 121 Highest-Rated Ally 27 | . . . 27 Total Orders . | . . . . Ally Attacks 1 | . . . 1 Total Damage 32 | . . . 32 Kills . | . . . . Allies Corrupted . | . . . . Allies Melted . | . . . . Intel | -11 -10 -10 -9 ------- Run | Yrd Mat Sub Rec Active Infowar (turns) . | . . . . Robot Analysis Total 1 | . 1 . . Derelict Logs Recovered 1 | . . 1 . Drone Launches . | . . . . Drone Recoveries . | . . . . Exploration | -11 -10 -10 -9 ------------- Run | Yrd Mat Sub Rec Turns Passed 2805 | . 1705 520 580 Spaces Moved 1476 | 1 922 287 266 Core . | . . . . Treads 1412 | . 859 287 266 Legs 64 | 1 63 . . Wheels . | . . . . Hover . | . . . . Flight . | . . . . Fastest Speed 120 | 120 120 160 160 Average Speed 160 | 120 157 160 171 Slowest Speed 240 | 120 160 160 240 Overloaded Moves . | . . . . Propulsion Burnouts . | . . . . Robots Hopped . | . . . . Potential Cave-ins . | . . . . Cave-ins Triggered . | . . . . Exploration Rate (%) 39 | 2 96 15 46 Regions Visited 3 Branch Regions 2 Pre-discovered Areas . | . . . . Known Exits Taken . | . . . . Unknown Exits Taken 3 | 1 1 1 . Scrap Searched . | . . . . Spaces Dug 5 | . . 5 . Terrain Destroyed 85 | . . 85 . Melee . | . . . . Projectile . | . . . . AOE 85 | . . 85 . Terrain Rammed . | . . . . Walls Destroyed . | . . . . Machines Disabled . | . . . . Actions | -11 -10 -10 -9 --------- Run | Yrd Mat Sub Rec Total 1715 | . 1059 315 341 Wait 31 | . 28 1 2 Move 1473 | . 921 286 266 Hop . | . . . . Pick Up 17 | . 16 . 1 Fast Attach 7 | . 6 1 . Attach 8 | . 3 1 4 Detach 1 | . 1 . . Swap 12 | . 7 5 . Drop 21 | . 16 3 2 Fire 106 | . 61 18 27 Melee . | . . . . Ram . | . . . . Kick . | . . . . Crush . | . . . . Escape Stasis . | . . . . Rewire 39 | . . . 39 Trap . | . . . . Miscellaneous . | . . . . Route ------- -11/Scrapyard -10/Materials (discovered 5 exits: [*Mat x3] / [*Min] / [*Sub]) -10/Subcaves (discovered 2 exits: [*Mat] / *Rec) -9/Recycling (discovered 1 exit: [*Fac]) History --------- Turn | Location | Event 1 | -11/Scrapyard | Discovered new exit (range 0) 1 | -11/Scrapyard | Entered Materials 307 | -10/Materials | Discovered new exit (range 3) 317 | -10/Materials | Build established: Mutant 616 | -10/Materials | Discovered new exit (range 8) 772 | -10/Materials | Discovered new exit (range 16) 1355 | -10/Materials | Discovered new exit (range 10) 1468 | -10/Materials | Discovered new exit (range 7) 1706 | -10/Materials | Entered Subcaves 1707 | -10/Subcaves | Approached by a straggling Scientist 1714 | -10/Subcaves | Discovered new exit (range 7) 1830 | -10/Subcaves | Learned Materials terminal intel 2129 | -10/Subcaves | Discovered new exit (range 15) 2169 | -10/Subcaves | A Subdweller sparked back to life 2169 | -10/Subcaves | A Subdweller sparked back to life 2169 | -10/Subcaves | A Subdweller sparked back to life 2174 | -10/Subcaves | Core integrity fell below 50% 2181 | -10/Subcaves | Found Prototype Device 2181 | -10/Subcaves | Identified Power Bank 2182 | -10/Subcaves | Attached Power Bank, gained temporary slots: Power x3 2226 | -10/Subcaves | Entered Recycling 2227 | -9/Recycling | Met a Zionite searching for Scraptown 2227 | -9/Recycling | Joined Warlord attack on 0b10 via Recycling 2592 | -9/Recycling | Discovered new exit (range 16) 2690 | -9/Recycling | Scanned before Scraplab entrance 2712 | -9/Recycling | Entered Scraplab 2724 | -9/Recycling | Build established: Commander-Mutant 2735 | -9/Recycling | Discovered new exit (range 3) 2749 | -9/Recycling | Angered Scraplab inhabitants 2751 | -9/Recycling | Found Prototype Device 2776 | -9/Recycling | Core integrity fell below 20% 2799 | -9/Recycling | Lost 5 allies 2800 | -9/Recycling | Identified Scrap Engine 2806 | -9/Recycling | Self-destructed Last Messages --------------- 02779_ 4C-Y1B(j) destroyed. Prototype Device integrity failing. 02782_ Critical hit (Burn: +50). Prototype Device integrity failing. 02791_ Imp. Assault Rifle destroyed. 02795_ V1-JYE(j) heat damages Lgt. Deuterium Engine. 02796_ Lgt. Treads destroyed. 02799_ Critical hit (Burn: +50). 02799_ Discarded Power Bank. Prototype Device integrity failing. 02800_ Temporary Power slot lost. 02800_ Dropped Lrg. Storage Unit. 02800_ Lrg. Storage Unit crushed and broken. 02800_ Imp. Assault Rifle crushed and broken. 02800_ Lgt. Cannon crushed and broken. 02800_ Grenade Launcher crushed and broken. 02800_ Identified Scrap Engine. 02805_ Lgt. Treads destroyed. 02806_ Imp. Assault Rifle destroyed. Map ----- +----------------------------------------------------+ | ???##??????????????????????? | | ### ###????????????????????? | | #????????????????????? | | < #????????????????????? | | #????????????????????? | | /######????????????????????? | | ###??????????????????? | | " "" ""#???######?????????? | | " T" Y"#???# #?????????? | | " "" ""#???# #??###????? | | " ####### #### ##???? | | " ### + #???? | | # ] ### ##### #???? | | #] #?# #???# #???? | | /######]] #?# #???#!#???? | | ##"""### #?######???#%#???? | | ##"Y"### #??????#####/####? | | #??????#"" "#? | | ####??????#"& ""#? | | #?????????#" "#? | | #?????????#" X"#? | | ######/#####?????#"& "#? | | ??# #?????#" * ""#? | | ??# ##????#"X [ "#? | | ??# #????#" %! ###? | | ??# ##????# "" =%#@#? | | ??# #?????# "" =j!#? | | ??# #?????##########? | | ??# #???????????????? | | ??# #???????????????? | | ??# #???????????????? | | ??######## #???????????????? | | ?????????###???????????????? | | ???????????????????????????? | | ???????????????????????????? | | ???????????????????????????? | | ???????????????????????????? | | ???????????????????????????? | | ???????????????????????????? | | ???????????????????????????? | | ???????????????????????????? | | ???????????????????????????? | | ???????????????????????????? | | ???????????????????????????? | | ???????????????????????????? | | ???????????????????????????? | | ???????????????????????????? | | ???????????????????????????? | | ???????????????????????????? | | ???????????????????????????? | +----------------------------------------------------+ Best States ------------- Heat Dissipation 25 Energy Generation 15 Energy Capacity 275 Matter Stores 300 Matter Capacity 300 Sight Range 16 Terrain Scan Density 10 Evasion (%) 55 Targeting Accuracy 5 Recoil Reduction 2 Item Schematics ----------------- None Robot Schematics ------------------ None Fabricated ------------ Nothing Repaired ---------- Nothing Alien Tech Used ----------------- None Achievements -------------- None Challenges ------------ None Game ------ Seed NullSiegeField Manual? 0 Play Time 00:24:02 Cumulative 421.3 hours Start 2025.07.28 @ 00:35:31 End 2025.07.28 @ 00:58:04 Sessions 1 Manual Loads 0 Difficulty Rogue Special Mode None Game No. 236 Rogue 236 Adventurer 0 Explorer 0 Win Type - Total 11 Types 10/0/1/0/0/0/0/0/0/0 Lore% 46 Gallery% 64 Achievement% 53 Wizard Run 0 Options --------- Layout 1 ASCII 0 Keyboard 0 Movement Numpad Keybinds 0 Fullscreen 1 Font 24/Smallcaps Map View 50x35 Zoom Use 0% Tactical HUD 1 Map Filters NONE Filters NONE Steam 1 RUN: 63261749-73d1-4d98-82f2-653e275ee7f0